bitfinex-derivatives/quotes_ETHF0:USTF0_20251229
["timestamp","ask_amount","ask_price","bid_price","bid_amount"]
[1767040444824,1.12665422,2934.0,2932.4,5.06756402]
[1767040445030,0.17062,2934.2,2933.2,1.12665422]
[1767040445230,0.17062,2934.2,2933.2,1.13045342]
[1767040445435,1.12665422,2934.5,2933.2,1.13045342]
[1767040446142,0.00511543,2934.1,2933.2,1.13045342]
[1767040447548,0.00511543,2934.1,2933.2,0.0037992]
[1767040482985,0.17064,2933.8,2931.9,4.27471216]
[1767040483169,0.17064,2933.8,2931.8,8.90471216]
[1767040483680,0.17064,2933.8,2931.8,5.75846404]
[1767040483869,0.17064,2933.8,2932.5,0.00511543]
[1767040488983,0.17065,2933.7,2932.5,0.00511543]
[1767040491677,0.00511543,2934.1,2932.5,0.00511543]
[1767040494487,0.17574543,2934.1,2932.5,0.00511543]
[1767040501701,0.00511543,2934.1,2932.5,0.00511543]
[1767040501889,0.17326751,2934.8,2933.0,1.12846404]
[1767040502891,0.00511543,2934.2,2932.7,0.1707]
[1767040503094,0.00511543,2934.2,2932.5,0.00511543]
[1767040507095,0.17573543,2934.2,2932.5,0.00511543]
[1767040507488,0.00511543,2934.2,2932.5,0.00511543]
[1767040508395,0.17063,2934.0,2932.5,0.00511543]
[1767040510398,0.00511543,2934.2,2932.7,1.12846404]
[1767040511095,0.00511543,2934.2,2932.5,0.00511543]
[1767040512498,0.00511543,2934.2,2932.9,1.12842221]
[1767040514999,0.00511543,2934.2,2933.0,1.12842221]
[1767040515497,0.00511543,2934.2,2933.3,1.12842221]
[1767040516604,0.00511543,2934.2,2932.5,0.17582543]
[1767040516899,0.00511543,2934.2,2933.2,1.12842221]
[1767040517304,0.00511543,2934.2,2933.0,1.12842221]
[1767040522406,0.00511543,2934.2,2933.2,1.12842221]
[1767040526209,0.00511543,2934.2,2933.5,1.12842221]
[1767040527807,0.00511543,2934.2,2933.3,1.12842221]
[1767040530313,0.00511543,2934.2,2933.5,1.12842221]
[1767040530511,0.17059,2934.7,2933.5,1.12842221]
[1767040530810,0.17059,2934.7,2933.9,1.12842221]
[1767040531010,0.17059,2934.7,2933.9,1.13209217]
[1767040531413,0.17059,2934.7,2933.9,0.00366996]
[1767040531614,0.00511543,2934.6,2934.0,0.00511543]
[1767040532716,1.12842221,2934.5,2934.0,1.543e-05]
[1767040532917,1.12842221,2934.5,2933.9,0.00366996]
[1767040533515,0.00511543,2934.6,2933.9,0.00366996]
[1767040533823,0.00511543,2934.6,2934.0,0.00511543]
[1767040545620,0.17571543,2934.6,2934.0,0.00511543]
[1767040549930,0.17571543,2934.6,2933.1,4.624]
[1767040549931,1.12842221,2934.4,2933.1,4.624]
[1767040550928,1.12842221,2934.4,2933.5,0.00511543]
[1767040553029,0.1706,2934.5,2933.5,0.00511543]
[1767040557531,0.00511543,2934.6,2933.5,0.00511543]
[1767040561738,1.12842221,2934.5,2933.5,0.00511543]
[1767040562327,0.00511543,2934.6,2933.5,0.00511543]
[1767040572044,0.17571543,2934.6,2933.5,0.00511543]
[1767040572744,1.12842221,2934.5,2933.5,0.00511543]
[1767040573950,0.17571543,2934.6,2933.5,0.00511543]
[1767040578943,0.17571543,2934.6,2933.5,3.06574093]
[1767040581554,0.00511543,2934.6,2933.5,3.06574093]
[1767040583350,0.00511543,2934.6,2933.5,0.00511543]
[1767040583554,0.17570543,2934.6,2933.5,0.00511543]
[1767040593467,0.1706,2934.5,2933.5,0.00511543]
[1767040598179,0.17062,2934.2,2933.1,0.00411861]
[1767040598481,1.12820003,2934.4,2933.1,0.00411861]
[1767040598976,1.12820003,2934.0,2933.1,0.00411861]
[1767040600482,1.29883003,2934.0,2933.1,0.00411861]
[1767040605378,0.17063,2934.0,2933.1,0.00411861]
[1767040616386,0.17064,2933.9,2933.1,1.861e-05]
[1767040618489,0.17064,2933.9,2932.3,4.629]
[1767040619490,0.17064,2933.9,2932.3,4.63226927]
[1767040622590,1.12820003,2933.8,2932.3,4.63226927]
[1767040622892,1.12820003,2934.0,2931.6,7.04708007]
[1767040622893,1.12820003,2933.4,2931.6,9.66778883]
[1767040623194,0.00511543,2932.8,2931.6,5.39307667]
[1767040623403,0.17581543,2932.8,2931.6,5.39307667]
[1767040623887,0.17581543,2932.8,2931.6,5.39620567]
[1767040624396,0.17071,2932.6,2931.6,5.39620567]
[1767040624587,0.17366654,2932.6,2931.6,5.39620567]
[1767040629086,0.17072,2932.4,2931.1,4.634]
[1767040629995,0.17072,2932.4,2931.1,4.63733599]
[1767040631384,0.00295654,2932.6,2931.6,1.12820003]
[1767040631589,0.00511543,2932.8,2931.1,4.80813599]
[1767040632499,0.00796589,2932.8,2931.1,0.17413599]
[1767040632696,0.00796589,2932.8,2931.2,4.634]
[1767040634402,0.17866589,2932.8,2931.2,4.634]
[1767040635405,0.17071,2932.7,2931.2,4.634]
[1767040635592,1.13616592,2932.8,2931.1,0.00333599]
[1767040635901,1.13616592,2932.8,2931.1,4.63733599]
[1767040636405,0.17072,2932.5,2931.1,4.63733599]
[1767040636700,1.12984804,2932.4,2931.1,4.63733599]
[1767040636903,0.17072,2932.5,2931.2,1.12984804]
[1767040639100,1.30056804,2932.5,2931.2,1.12984804]
[1767040643497,0.17073,2932.3,2931.1,0.00333599]
[1767040647311,0.17073,2932.2,2931.1,0.00333599]
[1767040648413,1.12984804,2932.1,2931.1,0.00333599]
[1767040649114,0.17073,2932.2,2931.1,0.00333599]
[1767040649307,0.17073,2932.2,2931.1,1.13318403]
[1767040649506,0.17073,2932.2,2931.3,1.12984804]
[1767040649706,0.17073,2932.2,2931.1,1.13318403]
[1767040650915,1.12984804,2931.5,2930.4,4.27471216]
[1767040651113,1.12984804,2931.0,2930.0,0.17086]
[1767040651313,1.13496347,2931.2,2930.1,4.633]
[1767040651914,1.12984804,2930.8,2930.1,4.63601769]
[1767040652107,0.00511543,2931.2,2930.1,4.63601769]
[1767040652308,0.00511543,2931.2,2930.1,5.76586573]
[1767040652512,0.00511543,2931.2,2930.3,1.12984804]
[1767040658033,0.00511543,2931.2,2930.1,4.63601769]
[1767040658240,0.00511543,2931.2,2930.5,1.12984804]
[1767040660842,0.17074,2932.1,2931.1,1.12984804]
[1767040661234,0.17074,2932.1,2930.9,1.12984804]
[1767040661436,0.17074,2932.1,2930.3,0.17084]
[1767040661643,1.30058804,2932.1,2930.7,1.12984804]
[1767040661942,0.00511543,2931.5,2930.9,0.00511543]
[1767040666742,1.543e-05,2931.5,2930.9,1.13496347]
[1767040666950,0.17074,2932.1,2930.9,1.13496347]
[1767040667852,0.00511543,2931.8,2930.9,1.13496347]
[1767040671355,0.00511543,2931.8,2930.9,0.00511543]
[1767040676658,0.17077,2931.6,2930.9,0.00511543]
[1767040676853,0.17077,2931.6,2930.9,0.00331543]
[1767040677054,0.17077,2931.6,2930.3,1.12984804]
[1767040678154,0.17077,2931.6,2930.7,0.00511543]
[1767040678560,0.17078,2931.5,2930.7,0.00511543]
[1767040679249,1.12984804,2931.3,2930.1,0.00301769]
[1767040679554,1.12984804,2930.9,2930.1,0.00301769]
[1767040679758,1.30065804,2930.9,2930.1,0.00301769]
[1767040679948,1.30065804,2930.9,2929.7,4.634]
[1767040680143,0.17081,2930.9,2929.7,4.634]
[1767040680354,0.17082,2930.8,2929.7,5.76384804]
[1767040680550,1.12984804,2930.3,2929.1,0.27875776]
[1767040680759,0.00511543,2930.0,2928.8,4.27471216]
[1767040680958,0.00865408,2930.0,2928.8,5.40846629]
[1767040681158,0.00865408,2930.0,2928.8,1.13375413]
[1767040681357,0.00865408,2930.0,2928.8,0.00390609]
[1767040681960,0.00865408,2930.0,2928.8,1.13375413]
[1767040682649,40.8,2931.7,2929.6,1.12984804]
[1767040682853,1.12984804,2930.8,2929.4,1.12984804]
[1767040683053,1.12984804,2930.6,2929.2,1.12984804]
[1767040683354,7.108,2931.6,2928.8,0.00390609]
[1767040683355,0.17086,2930.1,2928.8,0.00390609]
[1767040683556,0.17086,2930.1,2929.0,1.12984804]
[1767040683866,0.1741782,2930.1,2929.2,1.13496347]
[1767040684964,0.0033182,2930.1,2929.4,1.12984804]
[1767040685261,0.0033182,2930.1,2929.2,0.00511543]
[1767040685655,0.0033182,2930.1,2929.3,1.12984804]
[1767040685858,0.0033182,2930.1,2929.2,0.00511543]
[1767040686060,0.00511543,2929.9,2929.2,0.00511543]
[1767040686265,0.00511543,2929.9,2929.3,1.12984804]
[1767040686459,0.00511543,2929.9,2929.2,0.00511543]
[1767040686759,0.0033182,2930.1,2929.3,1.12984804]
[1767040686965,0.0033182,2930.1,2929.5,1.12984804]
[1767040687162,1.30066804,2930.8,2929.5,1.12984804]
[1767040687759,0.17082,2930.8,2929.5,1.12984804]
[1767040687963,1.12984804,2931.7,2929.6,4.45594977]
[1767040688170,1.12984804,2930.9,2929.5,4.635]
[1767040688356,1.12984804,2930.8,2929.4,1.12984804]
[1767040688665,1.12984804,2930.8,2929.2,3.38796347]
[1767040688868,1.12984804,2930.6,2929.2,3.38796347]
[1767040689056,0.00511543,2930.3,2929.2,3.38796347]
[1767040689454,0.00511543,2930.3,2929.2,0.00511543]
[1767040689661,1.12984804,2930.2,2929.2,0.00511543]
[1767040689958,0.00511543,2930.3,2929.2,0.00511543]
[1767040691155,0.00511543,2930.3,2929.2,1.13496347]
[1767040691566,0.00511543,2930.3,2929.4,1.12984804]
[1767040691766,0.00511543,2930.3,2929.8,1.12984804]
[1767040691969,0.17084,2930.5,2929.8,1.12984804]
[1767040692163,0.17079,2931.2,2930.0,1.12984804]
[1767040692864,0.17079,2931.2,2930.2,1.12984804]
[1767040693061,0.00341033,2931.0,2930.2,1.12984804]
[1767040693368,0.00341033,2931.0,2930.0,1.12984804]
[1767040693761,0.00341033,2931.0,2930.2,1.12984804]
[1767040694068,0.00341033,2931.0,2930.0,1.12984804]
[1767040694271,0.00341033,2931.0,2930.2,1.12984804]
[1767040695670,0.00341033,2931.0,2930.4,1.12984804]
[1767040696562,0.00341033,2931.0,2929.5,0.17089]
[1767040698662,0.00341033,2931.0,2929.6,4.005]
[1767040700366,0.00341033,2931.0,2929.5,0.17089]
[1767040700672,0.00341033,2931.0,2929.5,4.80389]
[1767040701369,0.17084,2930.5,2929.2,0.00511543]
[1767040703667,0.00341033,2931.0,2929.2,0.00511543]
[1767040706272,0.00341033,2931.0,2929.2,0.17601543]
[1767040706868,0.00378919,2931.7,2929.7,2.01569386]
[1767040707173,0.00378919,2931.7,2929.9,0.17087]
[1767040712474,0.00378919,2931.7,2930.0,0.17086]
[1767040712868,0.00378919,2931.7,2930.0,4.70298302]
[1767040713068,0.17073,2932.4,2930.0,4.53212302]
[1767040713372,0.17073,2932.4,2930.9,0.00511543]
[1767040713574,0.17073,2932.4,2931.0,4.635]
[1767040714273,0.17370842,2932.4,2931.0,4.63794551]
[1767040718880,0.17073,2932.3,2931.0,4.63794551]
[1767040722583,0.00297842,2932.4,2931.0,0.00294551]
[1767040723484,0.17075,2932.0,2931.0,0.00294551]
[1767040733491,0.17077,2931.7,2930.0,4.27471216]
[1767040733698,0.17077,2931.7,2930.1,4.008]
[1767040734494,0.17077,2931.7,2930.6,0.00511543]
[1767040734796,0.00511542,2931.2,2930.6,0.00511543]
[1767040735998,0.17077,2931.7,2930.6,0.00511543]
[1767040741797,1.30080569,2931.5,2930.1,0.00364158]
[1767040741998,0.17078,2931.4,2930.1,0.00364158]
[1767040742201,0.00297842,2932.4,2930.1,0.00364158]
[1767040742507,40.8,2932.3,2930.4,1.13002569]
[1767040742907,0.00511543,2931.6,2931.1,0.00511543]
[1767040743207,0.00511543,2931.6,2931.1,1.543e-05]
[1767040748803,0.00297842,2932.4,2931.1,1.543e-05]
[1767040748804,0.17370842,2932.4,2931.1,1.543e-05]
[1767040749111,0.17073,2932.3,2931.1,1.543e-05]
[1767040749305,0.00297842,2932.4,2931.1,1.543e-05]
[1767040749910,0.00510001,2932.0,2931.1,1.543e-05]
[1767040750103,0.17585001,2932.0,2931.1,1.543e-05]
[1767040750302,0.17076,2931.7,2931.1,1.543e-05]
[1767040750503,0.17076,2931.7,2930.1,0.00364158]
[1767040750904,0.17077,2931.6,2930.1,0.00364158]
[1767040751504,0.17077,2931.6,2930.6,0.00511543]
[1767040752106,1.13002569,2931.9,2930.6,1.543e-05]
[1767040752506,0.17078,2931.4,2930.6,1.543e-05]
[1767040754319,0.17076,2931.8,2930.6,1.543e-05]
[1767040755214,0.17076,2931.7,2930.6,1.543e-05]
[1767040755910,0.17079,2931.2,2930.1,0.00364158]
[1767040756909,0.17079,2931.2,2930.4,0.00511543]
[1767040758514,1.13051952,2931.0,2930.4,0.00511543]
[1767040758715,0.1708,2931.1,2930.1,0.00364158]
[1767040759618,0.1708,2931.1,2930.3,0.00511543]
[1767040762022,0.17077,2931.6,2930.6,1.13051952]
[1767040762523,0.17077,2931.6,2930.4,1.13051952]
[1767040763120,0.00510001,2932.0,2931.0,1.13051952]
[1767040766025,0.00510001,2932.0,2931.4,1.13051952]
[1767040766326,0.00297842,2932.4,2931.4,1.13051952]
[1767040767330,0.00511543,2932.2,2931.4,1.13051952]
[1767040769630,0.17067,2933.1,2932.1,1.13051952]
[1767040770532,0.00511543,2932.9,2932.3,0.00511543]
[1767040770738,0.00511543,2932.9,2932.3,0.00830197]
[1767040780850,0.17579543,2932.9,2932.3,1.97e-06]
[1767040781847,0.17579543,2932.9,2932.3,0.0051174]
[1767040784941,0.00511543,2932.9,2932.3,0.0051174]
[1767040785140,0.00351628,2933.1,2932.3,0.0051174]
[1767040786145,0.00511543,2933.0,2932.3,0.0051174]
[1767040790551,1.13446181,2933.0,2932.3,0.0051174]
[1767040793659,0.00511543,2933.0,2932.3,0.0051174]
[1767040797265,0.17578543,2933.0,2932.3,0.0051174]
[1767040797568,0.17068,2932.9,2932.3,1.74e-05]
[1767040798566,0.17068,2932.9,2932.3,0.00328834]
[1767040811078,0.17068,2932.8,2932.3,0.00328834]
[1767040811265,0.17068,2932.8,2931.6,1.12934638]
[1767040812176,0.17068,2932.8,2931.9,0.00511543]
[1767040813877,0.17065,2933.3,2932.5,1.12934638]
[1767040814076,0.17065,2933.3,2932.7,1.12934638]
[1767040814279,0.17062,2933.8,2932.7,1.12934638]
[1767040814875,0.00511543,2933.5,2932.3,1.12934638]
[1767040820186,1.12934638,2933.2,2932.0,1.12934638]
[1767040820379,1.12934638,2932.9,2931.9,0.00511543]
[1767040820582,0.17067,2933.1,2931.9,0.00511543]
[1767040821283,0.17067,2933.0,2931.9,0.00511543]
[1767040827488,1.12937032,2933.4,2931.9,0.00511543]
[1767040827685,0.17068,2932.9,2931.9,0.00511543]
[1767040840296,0.17068,2932.8,2931.9,0.00511543]
[1767040843701,1.12937032,2933.0,2931.9,0.00511543]
[1767040843897,0.1707,2932.6,2931.9,0.00511543]
[1767040844303,1.30009032,2932.2,2930.5,4.44552216]
[1767040844596,0.17072,2932.1,2930.5,4.78681]
[1767040845304,0.00511543,2931.6,2931.0,0.00511543]
[1767040845492,0.00939802,2931.6,2931.0,0.00330386]
[1767040845895,0.18014802,2931.6,2930.5,0.00422934]
[1767040846895,0.18014802,2931.6,2930.8,0.00511543]
[1767040849401,0.00939802,2931.6,2930.8,0.00511543]
[1767040849713,0.17072,2932.1,2930.8,0.00511543]
[1767040850005,40.8,2932.9,2931.0,1.12937032]
[1767040850006,0.17069,2932.6,2931.0,1.12937032]
[1767040850805,0.00511543,2932.1,2931.0,1.12937032]
[1767040853507,0.00511543,2932.1,2930.8,4.62011543]
[1767040856303,0.00511543,2932.1,2930.8,0.00511543]
[1767040856709,0.17073,2932.0,2930.8,0.00511543]
[1767040859008,0.17073,2931.9,2930.8,0.00511543]
[1767040859310,0.17074,2931.8,2930.8,0.00511543]
[1767040875819,0.00511543,2932.1,2930.8,0.00511543]
[1767040881717,0.00511543,2932.1,2930.8,1.13448575]
[1767040882625,0.00511543,2932.1,2931.1,1.1297576]
[1767040883321,0.00511543,2932.1,2931.3,1.1297576]
[1767040883724,0.00511543,2932.1,2931.1,1.1297576]
[1767040884020,0.00511543,2932.1,2931.3,1.1297576]
[1767040884222,0.00511543,2932.1,2930.8,0.00511543]
[1767040884223,1e-08,2932.1,2931.5,1.1297576]
[1767040884415,0.00326335,2932.6,2931.5,1.1297576]
[1767040885220,0.00326335,2932.6,2931.7,1.1297576]
[1767040885527,0.00511543,2932.4,2931.7,1.1297576]
[1767040885920,0.00511543,2932.4,2931.5,1.1297576]
[1767040889322,1.1297576,2931.7,2930.8,0.00511543]
[1767040890126,1.1297576,2931.5,2930.8,0.00511543]
[1767040892624,1.1297576,2931.5,2930.1,1.1297576]
[1767040893522,1.1297576,2931.5,2930.7,0.00511543]
[1767040894430,1.1297576,2931.5,2930.7,0.00201543]
[1767040904231,1.1297576,2931.3,2930.7,0.00201543]
[1767040904735,1.1297576,2931.5,2930.7,0.00201543]
[1767040910242,1.3005176,2931.5,2930.7,0.00201543]
[1767040913045,1.1297576,2931.3,2930.7,0.00201543]
[1767040914348,0.17076,2931.4,2930.7,0.00201543]
[1767040915239,1.1297576,2931.3,2930.7,0.00201543]
[1767040917247,1.3005276,2931.3,2930.7,0.00201543]
[1767040918947,1.3005276,2931.3,2930.7,0.00071543]
[1767040920252,0.17077,2931.3,2930.7,0.00071543]
[1767040920444,1.3005276,2931.3,2930.7,0.00071543]
[1767040920644,1.1297576,2930.8,2929.5,4.27471216]
[1767040920850,1.1297576,2930.6,2929.1,1.1297576]
[1767040921147,0.17079,2930.9,2929.5,1.1297576]
[1767040921734,0.00511543,2930.5,2929.9,0.00511543]
[1767040921943,0.00907279,2930.5,2929.9,0.00511543]
[1767040924348,0.00907279,2930.5,2929.9,1.13487303]
[1767040924543,0.17079,2930.9,2929.9,1.13487303]
[1767040925445,0.00511543,2930.7,2929.9,1.13487303]
[1767040925946,1.543e-05,2930.7,2930.1,1.1297576]
[1767040926540,1.543e-05,2930.7,2929.9,0.00511543]
[1767040938358,1.12977303,2930.7,2929.9,0.00511543]
[1767040938559,1.543e-05,2930.7,2929.9,0.00511543]
[1767040941458,1.12977303,2930.7,2929.9,0.00511543]
[1767040941658,1.1297576,2930.1,2929.5,0.0028603]
[1767040941858,0.17082,2930.5,2929.5,0.0028603]
[1767040942058,1.1297576,2930.3,2929.5,0.0028603]
[1767040942253,1.1297576,2929.8,2928.4,0.17094]
[1767040942455,1.1297576,2929.8,2928.5,4.608]
[1767040942655,1.1297576,2930.0,2928.9,0.00511543]
[1767040942853,1.1297576,2929.8,2928.9,0.00511543]
[1767040943057,1.1297576,2929.6,2928.9,0.00511543]
[1767040943258,0.17085,2930.0,2929.0,1.1297576]
[1767040944161,0.17085,2930.0,2928.9,0.00942758]
[1767040944364,1.3006076,2930.0,2928.9,0.00942758]
[1767040944565,0.17085,2930.0,2928.9,0.00942758]
[1767040950474,0.17086,2929.8,2928.9,0.00942758]
[1767040950859,7.37786,2929.8,2928.9,2.758e-05]
[1767040951065,0.17086,2929.7,2927.8,1.944]
[1767040952072,0.00511543,2929.0,2928.5,0.00511543]
[1767040954065,0.17087,2929.5,2928.5,0.00511543]
[1767040955175,0.00511543,2929.3,2928.5,0.00511543]
[1767040980692,0.17084,2930.1,2928.5,0.00511543]
[1767040980897,6.315,2930.5,2928.5,0.00511543]
[1767040980898,0.17085,2930.0,2928.5,0.00511543]
[1767040981300,0.17085,2929.9,2928.5,0.00511543]
[1767040981797,0.00511543,2929.5,2928.5,0.00511543]
[1767040988402,0.00321085,2930.9,2928.9,1.13168108]
[1767040988705,0.17083,2930.3,2928.5,1.13679651]
[1767040989004,0.17083,2930.3,2928.5,0.00511543]
[1767040989903,0.17084,2930.1,2928.5,0.00511543]
[1767040993412,0.17084,2930.1,2928.6,4.608]
[1767040995007,0.17084,2930.1,2928.5,0.00511543]
[1767040995212,0.17084,2930.1,2928.6,4.609]
[1767040995711,0.17085,2930.0,2928.6,4.609]
[1767040995907,1.13168108,2930.1,2928.6,4.609]
[1767040996406,0.17086,2929.8,2928.6,4.609]
[1767040999509,0.17086,2929.7,2928.6,4.609]
[1767041001811,0.17086,2929.7,2928.5,0.00511543]
[1767041002004,0.17088,2929.5,2928.5,0.00511543]
[1767041002210,0.17088,2929.4,2928.5,0.00511543]
[1767041004519,1.30299555,2929.4,2928.5,0.00511543]
[1767041006932,0.17088,2929.4,2928.6,1.13211555]
[1767041007125,1.30296555,2930.0,2928.6,1.13211555]
[1767041007320,0.17085,2930.0,2929.0,1.13211555]
[1767041007729,0.17085,2930.0,2928.8,1.13211555]
[1767041012430,0.17085,2930.0,2928.7,1.13211555]
[1767041013830,1.13211555,2929.5,2928.5,0.00511543]
[1767041014129,0.17086,2929.8,2928.5,0.00511543]
[1767041014130,1.13211555,2929.7,2928.5,0.00511543]
[1767041014331,0.17086,2929.8,2928.6,1.13211555]
[1767041016037,0.17086,2929.8,2928.8,1.13211555]
[1767041016230,0.17086,2929.8,2928.6,1.13211555]
[1767041017129,0.17086,2929.8,2928.5,0.00511543]
[1767041017328,1.13211555,2929.5,2928.5,0.00511543]
[1767041017528,1.13211555,2929.7,2928.5,0.00511543]
[1767041025840,0.17086,2929.8,2928.5,0.00511543]
[1767041026043,1.30297555,2929.8,2928.5,0.00511543]
[1767041027742,0.17086,2929.8,2928.5,0.00511543]
[1767041032938,0.17086,2929.8,2928.6,1.13211555]
[1767041036849,1.30297555,2929.8,2928.5,0.00511543]
[1767041037441,0.17086,2929.8,2928.5,0.00511543]
[1767041037640,0.17086,2929.8,2928.5,1.13723098]
[1767041040451,40.8,2930.7,2928.8,1.13211555]
[1767041040647,1.30294555,2930.2,2928.8,1.13211555]
[1767041043050,1.13211555,2930.1,2928.8,1.13211555]
[1767041045254,1.13211555,2929.3,2928.5,0.00511543]
[1767041045555,0.17089,2929.3,2928.5,0.00511543]
[1767041045953,0.17085,2929.9,2928.8,1.13211555]
[1767041046552,0.17085,2929.9,2928.6,1.13211555]
[1767041047657,1.13211555,2929.8,2928.5,0.00511543]
[1767041049653,0.17085,2929.9,2928.6,1.13211555]
[1767041050251,0.17085,2929.9,2928.9,1.13211555]
[1767041050960,1.13211555,2929.7,2928.5,0.00511543]
[1767041064863,0.17086,2929.7,2928.5,0.00511543]
[1767041066261,1.13211555,2929.6,2928.5,0.00511543]
[1767041066462,0.17086,2929.7,2928.5,0.00511543]
[1767041068868,0.17087,2929.6,2928.5,1.543e-05]
[1767041069876,0.00511543,2929.3,2928.5,1.543e-05]
[1767041074282,1.22078373,2930.6,2928.5,1.543e-05]
[1767041074491,0.17083,2930.2,2928.5,1.543e-05]
[1767041074687,0.17083,2930.2,2928.6,1.13190342]
[1767041074886,0.17083,2930.2,2928.7,4.604]
[1767041089199,0.17084,2930.1,2928.7,4.604]
[1767041090299,0.17085,2930.0,2928.7,4.604]
[1767041090693,0.17085,2929.9,2928.7,4.604]
[1767041102104,0.17082,2930.5,2928.9,1.13190342]
[1767041102399,0.17082,2930.5,2928.8,1.13190342]
[1767041105608,0.17082,2930.4,2928.7,4.604]
[1767041107303,0.17082,2930.4,2928.8,1.13190342]
[1767041114407,0.17082,2930.4,2928.7,4.604]
[1767041114612,1.13190342,2930.7,2928.8,4.607]
[1767041115514,0.17083,2930.2,2928.8,4.607]
[1767041116216,0.17083,2930.2,2928.9,1.13190342]
[1767041118315,0.17083,2930.2,2928.8,4.607]
[1767041119414,0.17085,2930.0,2928.5,1.543e-05]
[1767041119716,0.17085,2930.0,2928.6,4.609]
[1767041120620,0.17087,2929.7,2928.5,1.543e-05]
[1767041126523,0.17087,2929.7,2928.6,1.1315765]
[1767041130227,0.17087,2929.7,2928.5,1.543e-05]
[1767041132828,0.17087,2929.7,2928.7,1.1315765]
[1767041133035,0.17083,2930.2,2929.0,1.1315765]
[1767041135231,0.17083,2930.2,2928.8,1.1315765]
[1767041135636,1.1315765,2930.1,2928.8,1.1315765]
[1767041136637,1.3024165,2930.1,2928.8,1.1315765]
[1767041142839,1.1315765,2929.8,2928.5,1.543e-05]
[1767041144240,1.1315765,2929.5,2928.5,1.543e-05]
[1767041144437,0.17086,2929.7,2928.5,1.543e-05]
[1767041146845,0.17086,2929.7,2928.6,1.1315765]
[1767041148847,0.17086,2929.7,2928.8,1.1315765]
[1767041149440,0.17086,2929.7,2929.0,1.1315765]
[1767041149840,0.17086,2929.7,2928.8,1.1315765]
[1767041153245,0.17083,2930.3,2928.8,1.1315765]
[1767041153454,0.17083,2930.3,2929.1,1.1315765]
[1767041154250,0.17083,2930.3,2928.9,1.1315765]
[1767041154251,1.3024065,2930.3,2928.9,1.1315765]
[1767041155045,1.8300356,2931.3,2928.9,1.1315765]
[1767041155250,0.17076,2931.5,2930.3,1.1315765]
[1767041155444,0.17076,2931.5,2930.6,0.00511543]
[1767041155649,1.1315765,2931.0,2929.4,1.1315765]
[1767041155844,1.1315765,2931.0,2929.5,3.569]
[1767041156044,1.1315765,2931.0,2929.7,1.1315765]
[1767041156246,1.13523802,2931.0,2929.7,1.1315765]
[1767041156651,0.00511543,2930.6,2930.1,0.00511543]
[1767041158250,1.1315765,2930.2,2928.3,0.17094]
[1767041158450,0.17083,2930.3,2928.4,0.0032544]
[1767041159157,0.17083,2930.3,2929.1,0.00511543]
[1767041169160,0.17083,2930.2,2929.1,0.00511543]
[1767041169657,0.17083,2930.2,2929.2,0.0032544]
[1767041170561,0.17083,2930.2,2929.1,0.00511543]
[1767041171856,0.17087,2929.7,2928.4,0.00269193]
[1767041172061,0.17088,2929.4,2928.4,0.00269193]
[1767041172256,0.17089,2929.3,2928.4,0.00269193]
[1767041172955,0.17089,2929.3,2928.6,0.00511543]
[1767041173662,6.86164142,2929.9,2928.7,0.41762349]
[1767041173856,6.86164142,2929.9,2928.8,0.41762349]
[1767041174057,6.86164142,2929.9,2928.9,0.41762349]
[1767041174257,6.86164142,2929.9,2929.0,0.06545349]
[1767041174457,0.17089,2929.3,2928.6,0.00511543]
[1767041178461,1.13225216,2929.2,2928.6,0.00511543]
[1767041181468,0.17089,2929.3,2928.6,0.00511543]
[1767041182066,1.30310216,2930.0,2928.6,1.13736759]
[1767041182263,0.17082,2930.5,2929.0,1.13225216]
[1767041182464,0.17083,2930.4,2929.2,1.13225216]
[1767041182766,1.30308216,2930.4,2929.0,1.13225216]
[1767041183671,0.17082,2930.4,2929.2,1.13225216]
[1767041184267,1.30307216,2930.4,2929.0,1.13225216]
[1767041184570,0.17082,2930.4,2928.6,0.00511543]
[1767041186474,0.17082,2930.4,2928.7,0.40013141]
[1767041186678,0.17082,2930.4,2928.8,0.40013141]
[1767041186874,0.17082,2930.4,2928.9,0.40013141]
[1767041187076,0.17082,2930.4,2929.0,0.40013141]
[1767041187274,0.17082,2930.4,2929.1,0.40013141]
[1767041187474,0.17082,2930.4,2929.2,0.40013141]
[1767041187675,0.17082,2930.4,2929.3,0.40013141]
[1767041187872,0.17082,2930.4,2929.4,0.40013141]
[1767041188172,0.17082,2930.4,2929.5,0.40013141]
[1767041188374,0.17083,2930.3,2929.6,0.40013141]
[1767041188572,0.17083,2930.3,2929.7,0.40013141]
[1767041188772,0.17083,2930.2,2929.8,1.41e-06]
[1767041188973,0.17083,2930.2,2928.6,0.00511543]
[1767041189678,0.00511543,2930.6,2928.6,0.00511543]
[1767041189979,0.17085,2930.0,2928.6,0.00511543]
[1767041190476,40.8,2930.5,2928.6,0.00511543]
[1767041191079,0.17085,2929.9,2928.6,0.00511543]
[1767041191777,0.17085,2929.9,2928.8,0.0032544]
[1767041193181,0.17085,2929.9,2928.6,0.00511543]
[1767041193383,0.17085,2929.9,2929.0,0.0032544]
[1767041193874,0.17086,2929.8,2929.0,0.0032544]
[1767041194085,0.17086,2929.8,2928.6,0.00511543]
[1767041194271,0.17086,2929.8,2929.1,0.0032544]
[1767041195177,6.94,2930.3,2928.6,0.00511543]
[1767041195383,0.17088,2929.5,2928.6,0.00511543]
[1767041197273,0.00511543,2930.6,2928.6,0.00511543]
[1767041197681,0.17084,2930.1,2928.6,0.00511543]
[1767041201588,0.00511543,2930.6,2928.7,4.46177323]
[1767041201776,0.00511543,2930.6,2928.7,5.68817191]
[1767041202181,0.00511543,2930.6,2928.8,4.603]
[1767041202578,0.00511543,2930.6,2928.9,4.40183994]
[1767041203381,0.00511543,2930.6,2928.8,4.603]
[1767041204378,0.17083,2930.3,2928.6,0.00511543]
[1767041204580,0.17084,2930.2,2928.6,0.00511543]
[1767041204780,0.00511543,2930.6,2928.6,0.00511543]
[1767041206389,0.17085,2930.0,2928.6,0.00511543]
[1767041212690,0.17085,2929.9,2928.6,0.00511543]
[1767041220999,0.17086,2929.8,2928.6,0.00511543]
[1767041228806,0.17086,2929.7,2928.6,0.00511543]
[1767041229199,1.13176248,2929.9,2928.6,0.00511543]
[1767041229402,0.17087,2929.6,2928.6,0.00511543]
[1767041231699,0.17088,2929.4,2928.4,0.00269193]
[1767041232200,1.30265248,2929.2,2927.7,3.06194477]
[1767041232407,1.30265248,2929.2,2927.6,7.66294477]
[1767041232600,0.17091,2929.0,2927.6,4.601]
[1767041232807,0.00511543,2928.6,2928.0,0.00511543]
[1767041233103,0.00788706,2928.6,2928.0,0.00933171]
[1767041250716,0.17088,2929.5,2928.0,0.00933171]
[1767041251608,0.00511543,2929.0,2928.0,0.00933171]